Workbook

Sheet Sheet 1 - Table 2 (hidden)
C1: TreatedByReceptionist | D1: ReferralProcess | E1: HoursOpenRating | F1: HowQuicklySeePractitioner | G1: HowQuicklySeePractitionerRate | H1: HowQuicklySeeAnyPractitioner | I1: HowQuicklySeeAnyPractitionerRate | J1: PractitionerSeenOnSameDayUrgent | K1: WaitingTime | L1: WaitingTimeRate | M1: PhoneClinicGetThrough | N1: PhoneSpeakToPractitioner | P1: ThoroughlyAsked | Q1: Listens | R1: PutsAtEase | S1: DecisionsInvolved | T1: PractitionerExplains | U1: TimeSpent | V1: PractitionerPatience | W1: PractitionerCaring | X1: Understand | Y1: Cope | Z1: Healthy
A2: count | B2: count | C2: =COUNT('Paste data here'!M2:M26) -> 25 | D2: =COUNT('Paste data here'!N2:N26) -> 25 | E2: =COUNT('Paste data here'!O2:O26) -> 25 | G2: =COUNT('Paste data here'!V2:V26) -> 25 | I2: =COUNT('Paste data here'!X2:X26) -> 25 | L2: =COUNT('Paste data here'!AA2:AA26) -> 25 | M2: =COUNT('Paste data here'!AB2:AB26) -> 25 | N2: =COUNT('Paste data here'!AC2:AC26) -> 25 | P2: =COUNT('Paste data here'!AE2:AE26) -> 24 | Q2: =COUNT('Paste data here'!AF2:AF26) -> 24 | R2: =COUNT('Paste data here'!AG2:AG26) -> 24 | S2: =COUNT('Paste data here'!AH2:AH26) -> 24 | T2: =COUNT('Paste data here'!AI2:AI26) -> 24 | U2: =COUNT('Paste data here'!AJ2:AJ26) -> 24 | V2: =COUNT('Paste data here'!AK2:AK26) -> 24 | W2: =COUNT('Paste data here'!AL2:AL26) -> 24 | X2: =COUNT('Paste data here'!AM2:AM26) -> 24 | Y2: =COUNT('Paste data here'!AN2:AN26) -> 24 | Z2: =COUNT('Paste data here'!AO2:AO26) -> 24
A3: total (n) | B3: total (n) | C3: =SUM('Paste data here'!M2:M26) -> 134 | D3: =SUM('Paste data here'!N2:N26) -> 38 | E3: =SUM('Paste data here'!O2:O26) -> 124 | G3: =SUM('Paste data here'!V2:V26) -> 93 | I3: =SUM('Paste data here'!X2:X26) -> 49 | L3: =SUM('Paste data here'!AA2:AA26) -> 127 | M3: =SUM('Paste data here'!AB2:AB26) -> 123 | N3: =SUM('Paste data here'!AC2:AC26) -> 34 | P3: =SUM('Paste data here'!AE2:AE26) -> 136 | Q3: =SUM('Paste data here'!AF2:AF26) -> 136 | R3: =SUM('Paste data here'!AG2:AG26) -> 137 | S3: =SUM('Paste data here'!AH2:AH26) -> 134 | T3: =SUM('Paste data here'!AI2:AI26) -> 136 | U3: =SUM('Paste data here'!AJ2:AJ26) -> 130 | V3: =SUM('Paste data here'!AK2:AK26) -> 136 | W3: =SUM('Paste data here'!AL2:AL26) -> 134 | X3: =SUM('Paste data here'!AM2:AM26) -> 30 | Y3: =SUM('Paste data here'!AN2:AN26) -> 34 | Z3: =SUM('Paste data here'!AO2:AO26) -> 37
A4: not included | B4: not included | C4: =COUNTIF('Paste data here'!M2:M26,0) -> 0 | D4: =COUNTIF('Paste data here'!N2:N26,0) -> 18 | E4: =COUNTIF('Paste data here'!O2:O26,0) -> 1 | F4: =COUNTIF('Paste data here'!U2:U26,0) -> 6 | G4: =COUNTIF('Paste data here'!V2:V26,0) -> 6 | H4: =COUNTIF('Paste data here'!W2:W26,0) -> 15 | I4: =COUNTIF('Paste data here'!X2:X26,0) -> 15 | J4: =COUNTIF('Paste data here'!Y2:Y26,0) -> 16 | K4: =COUNTIF('Paste data here'!Z2:Z26,0) -> 0 | L4: =COUNTIF('Paste data here'!AA2:AA26,0) -> 0 | M4: =COUNTIF('Paste data here'!AB2:AB26,0) -> 2 | N4: =COUNTIF('Paste data here'!AC2:AC26,0) -> 19 | O4: =COUNTIF('Paste data here'!AD2:AD26,0) -> 0 | P4: =COUNTIF('Paste data here'!AE2:AE26,0) -> 0 | Q4: =COUNTIF('Paste data here'!AF2:AF26,0) -> 0 | R4: =COUNTIF('Paste data here'!AG2:AG26,0) -> 0 | S4: =COUNTIF('Paste data here'!AH2:AH26,0) -> 0 | T4: =COUNTIF('Paste data here'!AI2:AI26,0) -> 0 | U4: =COUNTIF('Paste data here'!AJ2:AJ26,0) -> 0 | V4: =COUNTIF('Paste data here'!AK2:AK26,0) -> 0 | W4: =COUNTIF('Paste data here'!AL2:AL26,0) -> 0 | X4: =COUNTIF('Paste data here'!AM2:AM26,0) -> 2 | Y4: =COUNTIF('Paste data here'!AN2:AN26,0) -> 2 | Z4: =COUNTIF('Paste data here'!AO2:AO26,0) -> 3
A5: Total included | B5: Total included | C5: =C2-C4 -> 25 | D5: =D2-D4 -> 7 | E5: =E2-E4 -> 24 | G5: =G2-G4 -> 19 | I5: =I2-I4 -> 10 | L5: =L2-L4 -> 25 | M5: =M2-M4 -> 23 | N5: =N2-N4 -> 6 | P5: =P2-P4 -> 24 | Q5: 24 | R5: 24 | S5: 24 | T5: 24 | U5: 24 | V5: 24 | W5: 24 | X5: 22 | Y5: 22 | Z5: 21
A6: max total | B6: max total | C6: =(C2-C4)*6 -> 150 | D6: =(D2-D4)*6 -> 42 | E6: =(E2-E4)*6 -> 144 | G6: =(G2-G4)*6 -> 114 | I6: =(I2-I4)*6 -> 60 | L6: =(L2-L4)*6 -> 150 | M6: =(M2-M4)*6 -> 138 | N6: =(N2-N4)*6 -> 36 | P6: =(P2-P4)*6 -> 144 | Q6: 144 | R6: 144 | S6: 144 | T6: 144 | U6: 144 | V6: 144 | W6: 144 | X6: =(X2-X4)*3 -> 66 | Y6: =(Y2-Y4)*3 -> 66 | Z6: =(Z2-Z4)*3 -> 63
A7: % | B7: % | C7: =(C3-C5)/(C6-C5)*100 -> 87 | D7: =(D3-D5)/(D6-D5)*100 -> 89 | E7: =(E3-E5)/(E6-E5)*100 -> 83 | G7: =(G3-G5)/(G6-G5)*100 -> 78 | I7: =(I3-I5)/(I6-I5)*100 -> 78 | L7: =(L3-L5)/(L6-L5)*100 -> 82 | M7: =(M3-M5)/(M6-M5)*100 -> 87 | N7: =(N3-N5)/(N6-N5)*100 -> 93 | P7: =(P3-P5)/(P6-P5)*100 -> 93 | Q7: 93 | R7: 94 | S7: 92 | T7: 93 | U7: 88 | V7: 93 | W7: 92 | X7: =100-((X3-X5)/(X6-X5)*100) -> 82 | Y7: =100-((Y3-Y5)/(Y6-Y5)*100) -> 73 | Z7: =100-((Z3-Z5)/(Z6-Z5)*100) -> 62
W8: min total | X8: =X5 -> 22

Sheet Results report
B2: Demographic of those covered by this report | H2: All questions have a maximum (best) score of 100
B3: Number of completed surveys | C3: =COUNT('Paste data here'!B2:B26) -> 25 | I3: score | J3: n
B4: Age (average) | C4: =AVERAGE('Paste data here'!F2:F26) -> 47.4 | H4: Satisfaction Reception | I4: ='Sheet 1 - Table 2'!C7+G1 -> 87 | J4: ='Sheet 1 - Table 2'!C5 -> 25 | M4: Named practitioner | N4: Any practitioner
B5: Female (%) | C5: =(COUNTIF('Paste data here'!G2:G26,"=Female")/C3)*100 -> 64.0 | H5: Satisfaction Referral | I5: ='Sheet 1 - Table 2'!D7 -> 89 | J5: ='Sheet 1 - Table 2'!D5 -> 7 | L5: Same day | M5: =COUNTIF('Paste data here'!U2:U26,1)/C3*100 -> 20.0 | N5: =COUNTIF('Paste data here'!W2:W26,1)/C3*100 -> 16.0
H6: Satisfaction with Access | L6: Next day | M6: =COUNTIF('Paste data here'!U2:U26,2)/C3*100 -> 8.0 | N6: =COUNTIF('Paste data here'!W2:W26,2)/C3*100 -> 4.0
H7: opening hours | I7: ='Sheet 1 - Table 2'!E7 -> 83 | J7: ='Sheet 1 - Table 2'!E5 -> 24 | L7: 2 | M7: =COUNTIF('Paste data here'!U2:U26,3)/C3*100 -> 24.0 | N7: =COUNTIF('Paste data here'!W2:W26,3)/C3*100 -> 12.0
B8: Ethnicity (%) | H8: see particular practitioner | I8: ='Sheet 1 - Table 2'!G7 -> 78 | J8: ='Sheet 1 - Table 2'!G5 -> 19 | L8: 3 | M8: =COUNTIF('Paste data here'!U2:U26,4)/C3*100 -> 16.0 | N8: =COUNTIF('Paste data here'!W2:W26,4)/C3*100 -> 8.0
B9: White | C9: =(COUNTIF('Paste data here'!H2:H26,1)/C3)*100 -> 100 | H9: see any practitioner | I9: ='Sheet 1 - Table 2'!I7 -> 78 | J9: ='Sheet 1 - Table 2'!I5 -> 10 | L9: 4 | M9: =COUNTIF('Paste data here'!U2:U26,5)/C3*100 -> 0.0 | N9: =COUNTIF('Paste data here'!W2:W26,5)/C3*100 -> 0.0
B10: Asian | C10: =(COUNTIF('Paste data here'!H2:H26,2)/C3)*100 -> 0 | H10: wait to be seen | I10: ='Sheet 1 - Table 2'!L7 -> 82 | J10: ='Sheet 1 - Table 2'!L5 -> 25 | L10: 5 | M10: =COUNTIF('Paste data here'!U2:U26,6)/C3*100 -> 8.0 | N10: =COUNTIF('Paste data here'!W2:W26,6)/C3*100 -> 0.0
B11: Black | C11: =(COUNTIF('Paste data here'!H2:H26,3)/C3)*100 -> 0 | H11: phone reception | I11: ='Sheet 1 - Table 2'!M7 -> 87 | J11: ='Sheet 1 - Table 2'!M5 -> 23
B12: Mixed | C12: =(COUNTIF('Paste data here'!H2:H26,4)/C3)*100 -> 0 | H12: phone practitioner | I12: ='Sheet 1 - Table 2'!N7 -> 93 | J12: ='Sheet 1 - Table 2'!N5 -> 6
B13: Chinese | C13: =(COUNTIF('Paste data here'!H2:H26,5)/C3)*100 -> 0
B14: Other ethnic group | C14: =(COUNTIF('Paste data here'!H2:H26,6)/C3)*100 -> 0 | H14: Satisfaction with Practitioner
H15: How thoroughly the practitioner asks about your symptoms and how you are feeling? | I15: ='Sheet 1 - Table 2'!P7 -> 93 | J15: ='Sheet 1 - Table 2'!P5 -> 24
B16: Employment (%) | H16: How well the practitioner listens to what you had to say? | I16: ='Sheet 1 - Table 2'!Q7 -> 93 | J16: ='Sheet 1 - Table 2'!Q5 -> 24
B17: Employed | C17: =(COUNTIF('Paste data here'!J2:J26,1)/C3)*100 -> 68 | H17: How well the practitioner puts you at ease during your physical examination? | I17: ='Sheet 1 - Table 2'!R7 -> 94 | J17: ='Sheet 1 - Table 2'!R5 -> 24 | L17: five mins or less | M17: =COUNTIF('Paste data here'!Z2:Z26,1)/C3*100 -> 68.0 | O17: `
B18: Unemployed | C18: =(COUNTIF('Paste data here'!J2:J26,2)/C3)*100 -> 0 | H18: How much the practitioner involves you in decisions about your care? | I18: ='Sheet 1 - Table 2'!S7 -> 92 | J18: ='Sheet 1 - Table 2'!S5 -> 24 | L18: 6 to 10 mins | M18: =COUNTIF('Paste data here'!Z2:Z26,2)/C3*100 -> 28.0
B19: full time education | C19: =(COUNTIF('Paste data here'!J2:J26,3)/C3)*100 -> 8 | H19: How well the practitioner explains your problems or any treatment that you need? | I19: ='Sheet 1 - Table 2'!T7 -> 93 | J19: ='Sheet 1 - Table 2'!T5 -> 24 | L19: 11 to 20 mins | M19: =COUNTIF('Paste data here'!Z2:Z26,3)/C3*100 -> 4.0
B20: Unable to work due to long term sickness | C20: =(COUNTIF('Paste data here'!J2:J26,14)/C3)*100 -> 0 | H20: The amount of time your practitioner spends with you? | I20: ='Sheet 1 - Table 2'!U7 -> 88 | J20: ='Sheet 1 - Table 2'!U5 -> 24 | L20: 21 to 30 mins | M20: =COUNTIF('Paste data here'!Z2:Z26,4)/C3*100 -> 0.0
B21: Looking after your home/family | C21: =(COUNTIF('Paste data here'!J2:J26,5)/C3)*100 -> 4 | H21: The practitioner's patience with your questions or worries? | I21: ='Sheet 1 - Table 2'!V7 -> 93 | J21: ='Sheet 1 - Table 2'!V5 -> 24 | L21: 30 mins or more | M21: =COUNTIF('Paste data here'!Z2:Z26,5)/C3*100 -> 0.0
B22: Retired | C22: =(COUNTIF('Paste data here'!J2:J26,6)/C3)*100 -> 20 | H22: The practitioner's caring and concern for you? | I22: ='Sheet 1 - Table 2'!W7 -> 92 | J22: ='Sheet 1 - Table 2'!W5 -> 24
B23: Other | C23: =(COUNTIF('Paste data here'!J2:J26,7)/C3)*100 -> 0 | H23: Thinking about a TYPICAL appointment with your USUAL PRACTITIONER, how do you rate the your ability to:
H24: UNDERSTAND your problems? | I24: ='Sheet 1 - Table 2'!X7 -> 82 | J24: ='Sheet 1 - Table 2'!X5 -> 22
B25: Visits to the clinic in last 12 months (%) | H25: Able to COPE with your problems? | I25: ='Sheet 1 - Table 2'!Y7 -> 73 | J25: ='Sheet 1 - Table 2'!Y5 -> 22
B26: None | C26: =(COUNTIF('Paste data here'!L2:L26,0)/C3)*100 -> 0 | H26: KEEP YOURSELF healthy? | I26: ='Sheet 1 - Table 2'!Z7 -> 62 | J26: ='Sheet 1 - Table 2'!Z5 -> 21
B27: 1 or 2 | C27: =(COUNTIF('Paste data here'!L2:L26,1)/C3*100) -> 36
B28: 3 or 4 | C28: =(COUNTIF('Paste data here'!L2:L26,3)/C3*100) -> 36
B29: 5 or 6 | C29: =(COUNTIF('Paste data here'!L2:L26,5)/C3*100) -> 24
B30: 7 or more | C30: =(COUNTIF('Paste data here'!L2:L26,7)/C3*100) -> 4
H32: Would like extra opening hours (NB more than one answer may be selected %
H33: Early morning | I33: =(COUNTIF('Paste data here'!P2:P26,"=TRUE")/C3)*100 -> 8.0
H34: Lunchtimes | I34: =(COUNTIF('Paste data here'!Q2:Q26,"=TRUE")/C3)*100 -> 0.0
H35: Evenings | I35: =(COUNTIF('Paste data here'!R2:R26,"=TRUE")/C5)*100 -> 4.7
H36: Weekends | I36: =(COUNTIF('Paste data here'!S2:S26,"=TRUE")/C3)*100 -> 4.0
H37: None | I37: =(COUNTIF('Paste data here'!T2:T26,"=TRUE")/C3)*100 -> 80.0

Sheet Paste data here
A1: assessmenttype | B1: FirstAppointmentDate | C1: PractitionerName | D1: OrganisationName | E1: PracticeName | F1: AgeAtFirstAppointment | G1: Gender | H1: Ethnic | I1: EthnicDesc | J1: Employment | K1: EmploymentDesc | L1: TimesSeen | M1: TreatedByReceptionist | N1: ReferralProcess | O1: HoursOpenRating | P1: HoursOpenAdditional_EarlyMorning | Q1: HoursOpenAdditional_Lunchtimes | R1: HoursOpenAdditional_Evenings | S1: HoursOpenAdditional_Weekends | T1: HoursOpenAdditional_None | U1: HowQuicklySeePractitioner | V1: HowQuicklySeePractitionerRate | W1: HowQuicklySeeAnyPractitioner | X1: HowQuicklySeeAnyPractitionerRate | Y1: PractitionerSeenOnSameDayUrgent | Z1: WaitingTime | AA1: WaitingTimeRate | AB1: PhoneClinicGetThrough | AC1: PhoneSpeakToPractitioner | AD1: KnowPractitioner | AE1: ThoroughlyAsked | AF1: Listens | AG1: PutsAtEase | AH1: DecisionsInvolved | AI1: PractitionerExplains | AJ1: TimeSpent | AK1: PractitionerPatience | AL1: PractitionerCaring | AM1: Understand | AN1: Cope | AO1: Healthy | AP1: GoodPoints | AQ1: Improvements | AR1: Information
A2: CPAQ | B2: 2008-07-11 | C2: Jack Jones | D2: Back2Health | E2: Alton | F2: 65 | G2: Female | H2: 1 | I2: White | J2: 6 | K2: Retired from paid work | L2: 3 | M2: 6 | N2: 6 | O2: 6 | P2: FALSE | Q2: FALSE | R2: FALSE | S2: FALSE | T2: TRUE | U2: 0 | V2: 0 | W2: 0 | X2: 0 | Y2: 0 | Z2: 1 | AA2: 6 | AB2: 6 | AC2: 0 | AD2: TRUE | AE2: 6 | AF2: 6 | AG2: 6 | AH2: 6 | AI2: 6 | AJ2: 6 | AK2: 6 | AL2: 6 | AM2: 1 | AN2: 1 | AO2: 1 | AP2: The variety of methods available and used to treat my problems. Listens to what I say and gives good advice. | AQ2: Not that I can think of. | AR2: I have found great improvement after years of trying to manage my condition.
A3: CPAQ | B3: 2008-07-11 | C3: Jack Jones | D3: Back2Health | E3: Alton | F3: 61 | G3: Female | H3: 1 | I3: White | J3: 6 | K3: Retired from paid work | L3: 1 | M3: 6 | N3: 6 | O3: 6 | P3: FALSE | Q3: FALSE | R3: FALSE | S3: FALSE | T3: TRUE | U3: 3 | V3: 6 | W3: 0 | X3: 0 | Y3: 0 | Z3: 1 | AA3: 6 | AB3: 6 | AC3: 0 | AD3: TRUE | AE3: 6 | AF3: 6 | AG3: 6 | AH3: 6 | AI3: 6 | AJ3: 6 | AK3: 6 | AL3: 6 | AM3: 0 | AN3: 0 | AO3: 0 | AP3: It is excellent | AQ3: No
A4: CPAQ | B4: 2008-07-15 | C4: Jack Jones | D4: Back2Health | E4: Alton | F4: 15 | G4: Female | H4: 1 | I4: White | J4: 3 | K4: At school or in full time education | L4: 3 | M4: 6 | N4: 0 | O4: 6 | P4: FALSE | Q4: FALSE | R4: FALSE | S4: FALSE | T4: TRUE | U4: 4 | V4: 5 | W4: 4 | X4: 5 | Y4: 0 | Z4: 1 | AA4: 6 | AB4: 6 | AC4: 0 | AD4: TRUE | AE4: 6 | AF4: 6 | AG4: 6 | AH4: 5 | AI4: 6 | AJ4: 6 | AK4: 6 | AL4: 6 | AM4: 0 | AN4: 0 | AO4: 0 | AP4: He listens very well | AQ4: Changing facilities , maybe a locker | AR4: We were recommended to Kalvin and we would be happy to recommend him to our friends and use him again if necessary.
A5: CPAQ | B5: 2008-07-18 | C5: Jack Jones | D5: Back2Health | E5: Alton | F5: 52 | G5: Male | H5: 1 | I5: White | J5: 1 | K5: Employed (full of part time, including self-employed | L5: 7 | M5: 6 | N5: 5 | O5: 4 | P5: TRUE | Q5: FALSE | R5: FALSE | S5: FALSE | T5: FALSE | U5: 4 | V5: 4 | W5: 0 | X5: 0 | Y5: 2 | Z5: 1 | AA5: 6 | AB5: 4 | AC5: 0 | AD5: TRUE | AE5: 6 | AF5: 6 | AG5: 6 | AH5: 6 | AI5: 5 | AJ5: 5 | AK5: 5 | AL5: 5 | AM5: 1 | AN5: 2 | AO5: 2
A6: CPAQ | B6: 2008-07-12 | C6: Jack Jones | D6: Back2Health Basingstoke | E6: Back2Health Basingstoke | F6: 26 | G6: Female | H6: 1 | I6: White | J6: 1 | K6: Employed (full of part time, including self-employed | L6: 1 | M6: 5 | N6: 0 | O6: 5 | P6: FALSE | Q6: FALSE | R6: FALSE | S6: FALSE | T6: TRUE | U6: 0 | V6: 0 | W6: 1 | X6: 5 | Y6: 0 | Z6: 2 | AA6: 4 | AB6: 5 | AC6: 0 | AD6: TRUE | AE6: 5 | AF6: 5 | AG6: 5 | AH6: 5 | AI6: 5 | AJ6: 4 | AK6: 5 | AL6: 5 | AM6: 2 | AN6: 1 | AO6: 1
A7: CPAQ | B7: 2008-07-08 | C7: Suzie Smith Cooper | D7: Berwick Chiropractic | E7: Boston Chiropractic | F7: 47 | G7: Female | H7: 1 | I7: White | J7: 1 | K7: Employed (full of part time, including self-employed | L7: 5 | M7: 4 | N7: 0 | O7: 4 | P7: FALSE | Q7: FALSE | R7: FALSE | S7: FALSE | T7: TRUE | U7: 4 | V7: 3 | W7: 4 | X7: 3 | Y7: 1 | Z7: 1 | AA7: 6 | AB7: 5 | AC7: 5 | AD7: TRUE | AE7: 5 | AF7: 5 | AG7: 5 | AH7: 5 | AI7: 5 | AJ7: 5 | AK7: 5 | AL7: 5 | AM7: 1 | AN7: 1 | AO7: 3 | AP7: This particular Chiropractic care brings longer lasting pain relief than previous Chiropractic practice experienced. | AR7: On all visits I have been most satisfied with the treatment given by Dr Grant She has corrected 'niggles' in a few parts of my anatomy that I have felt for a long time. I feel completely at ease whilst being treated mainly due to Dr Cooper's friendly nature and good understanding of my back complaint.
A8: CPAQ | B8: 2008-07-19 | C8: Gwendoline Guttersnipe Griffiths DC BSc MCC | D8: Back2Health | E8: Cowplain | F8: 68 | G8: Male | H8: 1 | I8: White | J8: 1 | K8: Employed (full of part time, including self-employed | L8: 1 | M8: 5 | N8: 0 | O8: 4 | P8: FALSE | Q8: FALSE | R8: TRUE | S8: FALSE | T8: FALSE | U8: 3 | V8: 4 | W8: 3 | X8: 4 | Y8: 0 | Z8: 2 | AA8: 4 | AB8: 4 | AC8: 0 | AD8: TRUE | AE8: 5 | AF8: 5 | AG8: 5 | AH8: 5 | AI8: 5 | AJ8: 4 | AK8: 5 | AL8: 5 | AM8: 1 | AN8: 1 | AO8: 2 | AP8: It helps me to maintain an active lifestyle | AQ8: None that springs to mind. Very satisfied. | AR8: None
A9: PTPAQ | B9: 2008-07-17 | C9: Mrs Rita Adams | D9: Martonside Physiotherapy Ltd | E9: Martonside Physiotherapy Ltd | F9: 56 | G9: Female | H9: 1 | I9: White | J9: 1 | K9: Employed (full of part time, including self-employed | L9: 1 | M9: 5 | N9: 0 | O9: 6 | P9: FALSE | Q9: FALSE | R9: FALSE | S9: FALSE | T9: TRUE | U9: 6 | V9: 4 | W9: 0 | X9: 0 | Y9: 0 | Z9: 2 | AA9: 5 | AB9: 0 | AC9: 0 | AD9: FALSE | AP9: professional helpful | AQ9: no | AR9: excellent care given
A10: CPAQ | B10: 2008-07-11 | C10: Andrew Adams DC BSc | D10: Back2Health | E10: Midhurst | F10: 49 | G10: Female | H10: 1 | I10: White | J10: 1 | K10: Employed (full of part time, including self-employed | L10: 1 | M10: 4 | N10: 0 | O10: 3 | P10: TRUE | Q10: FALSE | R10: TRUE | S10: FALSE | T10: FALSE | U10: 6 | V10: 3 | W10: 0 | X10: 0 | Y10: 0 | Z10: 1 | AA10: 4 | AB10: 2 | AC10: 0 | AD10: TRUE | AE10: 5 | AF10: 5 | AG10: 5 | AH10: 5 | AI10: 5 | AJ10: 5 | AK10: 5 | AL10: 5 | AM10: 3 | AN10: 3 | AO10: 3 | AQ10: When ringing the Midhurst clinic, it nearly always goes to answer machine, even when they are in clinic hours. | AR10: It would be nice if both the receptionist would offer to ring Petersfield if Anna is unable to accomodate an appointment at Midhurst, only SUzie offered this service.
A11: CPAQ | B11: 2008-07-12 | C11: Gwendoline Guttersnipe Griffiths DC BSc MCC | D11: Back2Health | E11: Midhurst | F11: 76 | G11: Male | H11: 1 | I11: White | J11: 6 | K11: Retired from paid work | L11: 3 | M11: 6 | N11: 0 | O11: 5 | P11: FALSE | Q11: FALSE | R11: FALSE | S11: FALSE | T11: TRUE | U11: 3 | V11: 5 | W11: 0 | X11: 0 | Y11: 1 | Z11: 1 | AA11: 5 | AB11: 6 | AC11: 5 | AD11: TRUE | AE11: 6 | AF11: 6 | AG11: 6 | AH11: 6 | AI11: 6 | AJ11: 6 | AK11: 6 | AL11: 6 | AM11: 1 | AN11: 1 | AO11: 1 | AP11: yes its great | AR11: just a great service no pressure when feeling enough is enough sorted out my problem will return whenever i need maintenanace on my back many thanks to Guss
A12: CPAQ | B12: 2008-07-15 | C12: Gail Grimshaw DC | D12: Noble Chiropractic | E12: Nuthatch Chiropractic Totnes | F12: 19 | G12: Female | H12: 1 | I12: White | J12: 1 | K12: Employed (full of part time, including self-employed | L12: 3 | M12: 5 | N12: 4 | O12: 6 | P12: FALSE | Q12: FALSE | R12: FALSE | S12: FALSE | T12: TRUE | U12: 0 | V12: 0 | W12: 0 | X12: 0 | Y12: 0 | Z12: 3 | AA12: 3 | AB12: 6 | AC12: 6 | AD12: TRUE | AE12: 6 | AF12: 6 | AG12: 6 | AH12: 6 | AI12: 6 | AJ12: 6 | AK12: 6 | AL12: 6 | AM12: 3 | AN12: 3 | AO12: 3
A13: CPAQ | B13: 2008-07-15 | C13: Matt Morton Christensen DC BSc MBA FCC | D13: Back2Health | E13: Petersfield | F13: 49 | G13: Female | H13: 1 | I13: White | J13: 1 | K13: Employed (full of part time, including self-employed | L13: 1 | M13: 5 | N13: 0 | O13: 5 | P13: FALSE | Q13: FALSE | R13: FALSE | S13: FALSE | T13: TRUE | U13: 1 | V13: 6 | W13: 1 | X13: 6 | Y13: 2 | Z13: 1 | AA13: 5 | AB13: 5 | AC13: 6 | AD13: TRUE | AE13: 5 | AF13: 5 | AG13: 5 | AH13: 5 | AI13: 5 | AJ13: 5 | AK13: 5 | AL13: 5 | AM13: 1 | AN13: 2 | AO13: 0
A14: CPAQ | B14: 2008-07-15 | C14: Matt Morton Christensen DC BSc MBA FCC | D14: Back2Health | E14: Petersfield | F14: 55 | G14: Male | H14: 1 | I14: White | J14: 1 | K14: Employed (full of part time, including self-employed | L14: 1 | M14: 5 | N14: 6 | O14: 0 | P14: FALSE | Q14: FALSE | R14: FALSE | S14: FALSE | T14: TRUE | U14: 1 | V14: 6 | W14: 0 | X14: 0 | Y14: 2 | Z14: 2 | AA14: 3 | AB14: 5 | AC14: 0 | AD14: TRUE | AE14: 6 | AF14: 6 | AG14: 6 | AH14: 6 | AI14: 6 | AJ14: 6 | AK14: 6 | AL14: 6 | AM14: 3 | AN14: 3 | AO14: 3
A15: CPAQ | B15: 2008-07-15 | C15: Jane Juliet DC MSc FCC | D15: Back2Health | E15: Petersfield | F15: 33 | G15: Female | H15: 1 | I15: White | J15: 1 | K15: Employed (full of part time, including self-employed | L15: 5 | M15: 5 | N15: 5 | O15: 6 | P15: FALSE | Q15: FALSE | R15: FALSE | S15: FALSE | T15: TRUE | U15: 3 | V15: 5 | W15: 0 | X15: 0 | Y15: 0 | Z15: 2 | AA15: 3 | AB15: 5 | AC15: 0 | AD15: TRUE | AE15: 6 | AF15: 6 | AG15: 6 | AH15: 6 | AI15: 6 | AJ15: 6 | AK15: 6 | AL15: 6 | AM15: 1 | AN15: 2 | AO15: 1
A16: CPAQ | B16: 2008-07-18 | C16: Matt Morton Christensen DC BSc MBA FCC | D16: Back2Health | E16: Petersfield | F16: 55 | G16: Male | H16: 1 | I16: White | J16: 1 | K16: Employed (full of part time, including self-employed | L16: 1 | M16: 5 | N16: 0 | O16: 5 | P16: FALSE | Q16: FALSE | R16: FALSE | S16: FALSE | T16: TRUE | U16: 1 | V16: 6 | W16: 1 | X16: 6 | Y16: 2 | Z16: 2 | AA16: 5 | AB16: 6 | AC16: 6 | AD16: TRUE | AE16: 6 | AF16: 6 | AG16: 6 | AH16: 6 | AI16: 6 | AJ16: 6 | AK16: 6 | AL16: 6 | AM16: 1 | AN16: 1 | AO16: 1
A17: CPAQ | B17: 2008-07-19 | C17: Andrew Adams DC BSc | D17: Back2Health | E17: Petersfield | F17: 71 | G17: Male | H17: 1 | I17: White | J17: 6 | K17: Retired from paid work | L17: 3 | M17: 6 | N17: 0 | O17: 6 | P17: FALSE | Q17: FALSE | R17: FALSE | S17: FALSE | T17: TRUE | U17: 2 | V17: 5 | W17: 2 | X17: 5 | Y17: 2 | Z17: 1 | AA17: 6 | AB17: 6 | AC17: 0 | AD17: TRUE | AE17: 6 | AF17: 6 | AG17: 6 | AH17: 6 | AI17: 6 | AJ17: 6 | AK17: 6 | AL17: 6 | AM17: 1 | AN17: 1 | AO17: 1
A18: CPAQ | B18: 2008-07-10 | C18: Naomi North MA(Oxon) DC | D18: Salisbury Chiropractic Clinic | E18: Salisbury Chiropractic Clinic | F18: 53 | G18: Female | H18: 1 | I18: White | J18: 5 | K18: Looking after your home/family | L18: 3 | M18: 6 | N18: 0 | O18: 6 | P18: FALSE | Q18: FALSE | R18: FALSE | S18: FALSE | T18: TRUE | U18: 0 | V18: 0 | W18: 0 | X18: 0 | Y18: 0 | Z18: 1 | AA18: 6 | AB18: 6 | AC18: 0 | AD18: TRUE | AE18: 6 | AF18: 6 | AG18: 6 | AH18: 6 | AI18: 6 | AJ18: 6 | AK18: 6 | AL18: 6 | AM18: 1 | AN18: 1 | AO18: 1 | AP18: Not that I can think of. | AQ18: No | AR18: None
A19: CPAQ | B19: 2008-07-10 | C19: Waynetta Walker Witherspoon Dickinson DC BSc | D19: The Chiropractic Clinic | E19: South Shields Chiropractic Clinic | F19: 53 | G19: Male | H19: 1 | I19: White | J19: 1 | K19: Employed (full of part time, including self-employed | L19: 3 | M19: 5 | N19: 0 | O19: 5 | P19: FALSE | Q19: FALSE | R19: FALSE | S19: TRUE | T19: FALSE | U19: 1 | V19: 5 | W19: 1 | X19: 5 | Y19: 2 | Z19: 1 | AA19: 5 | AB19: 5 | AC19: 6 | AD19: TRUE | AE19: 5 | AF19: 5 | AG19: 5 | AH19: 4 | AI19: 5 | AJ19: 5 | AK19: 5 | AL19: 5 | AM19: 1 | AN19: 1 | AO19: 2 | AP19: The availability of someone to talk to and get advice when I needed it
A20: CPAQ | B20: 2008-07-18 | C20: Gweneth Gawker BSc | D20: The Chiropractic Clinic | E20: South Shields Chiropractic Clinic | F20: 32 | G20: Female | H20: 1 | I20: White | J20: 1 | K20: Employed (full of part time, including self-employed | L20: 3 | M20: 5 | N20: 0 | O20: 3 | P20: FALSE | Q20: FALSE | R20: TRUE | S20: FALSE | T20: FALSE | U20: 4 | V20: 5 | W20: 0 | X20: 0 | Y20: 0 | Z20: 1 | AA20: 6 | AB20: 6 | AC20: 0 | AD20: TRUE | AE20: 5 | AF20: 5 | AG20: 6 | AH20: 5 | AI20: 6 | AJ20: 4 | AK20: 6 | AL20: 5 | AM20: 1 | AN20: 3 | AO20: 3
A21: CPAQ | B21: 2008-07-13 | C21: Waynetta Walker Chester-Davis MChiro. D.C. PGCert (Chiropractor) | D21: Back2Health | E21: Southsea | F21: 32 | G21: Female | H21: 1 | I21: White | J21: 1 | K21: Employed (full of part time, including self-employed | L21: 3 | M21: 6 | N21: 0 | O21: 6 | P21: FALSE | Q21: FALSE | R21: FALSE | S21: FALSE | T21: TRUE | U21: 3 | V21: 5 | W21: 3 | X21: 5 | Y21: 0 | Z21: 1 | AA21: 5 | AB21: 5 | AC21: 0 | AD21: TRUE | AE21: 6 | AF21: 6 | AG21: 6 | AH21: 6 | AI21: 6 | AJ21: 6 | AK21: 6 | AL21: 6 | AM21: 1 | AN21: 1 | AO21: 1 | AP21: Wayne really knows what he's talking about and I always feel listened to | AQ21: No | AR21: None
A22: CPAQ | B22: 2008-07-09 | C22: Gweneth Gawker BSc | D22: The Chiropractic Clinic | E22: Wansbeck Chiropractic Clinic | F22: 48 | G22: Female | H22: 1 | I22: White | J22: 1 | K22: Employed (full of part time, including self-employed | L22: 5 | M22: 6 | N22: 0 | O22: 5 | P22: FALSE | Q22: FALSE | R22: FALSE | S22: FALSE | T22: TRUE | U22: 3 | V22: 5 | W22: 3 | X22: 5 | Y22: 0 | Z22: 1 | AA22: 6 | AB22: 6 | AC22: 0 | AD22: TRUE | AE22: 6 | AF22: 6 | AG22: 6 | AH22: 6 | AI22: 6 | AJ22: 6 | AK22: 6 | AL22: 6 | AM22: 1 | AN22: 1 | AO22: 2 | AP22: Very freindly and none threating atmosphere. Made to feel welcome and listened to from my first visit onwards. Excellant practise would recommend to others . | AQ22: No
A23: CPAQ | B23: 2008-07-19 | C23: Gweneth Gawker BSc | D23: The Chiropractic Clinic | E23: Wansbeck Chiropractic Clinic | F23: 44 | G23: Female | H23: 1 | I23: White | J23: 1 | K23: Employed (full of part time, including self-employed | L23: 5 | M23: 6 | N23: 6 | O23: 6 | P23: FALSE | Q23: FALSE | R23: FALSE | S23: FALSE | T23: TRUE | U23: 1 | V23: 6 | W23: 0 | X23: 0 | Y23: 0 | Z23: 1 | AA23: 6 | AB23: 6 | AC23: 0 | AD23: TRUE | AE23: 6 | AF23: 6 | AG23: 6 | AH23: 6 | AI23: 6 | AJ23: 5 | AK23: 6 | AL23: 6 | AM23: 2 | AN23: 2 | AO23: 3
A24: CPAQ | B24: 2008-07-15 | C24: Gwendoline Guttersnipe Griffiths DC BSc MCC | D24: Back2Health | E24: Waterlooville | F24: 18 | G24: Male | H24: 1 | I24: White | J24: 3 | K24: At school or in full time education | L24: 1 | M24: 5 | N24: 0 | O24: 6 | P24: FALSE | Q24: FALSE | R24: FALSE | S24: FALSE | T24: TRUE | U24: 2 | V24: 5 | W24: 0 | X24: 0 | Y24: 2 | Z24: 2 | AA24: 5 | AB24: 6 | AC24: 0 | AD24: TRUE | AE24: 6 | AF24: 6 | AG24: 6 | AH24: 6 | AI24: 6 | AJ24: 6 | AK24: 6 | AL24: 6 | AM24: 1 | AN24: 1 | AO24: 1 | AP24: I first went as a juvenile and he was brilliant, explaining to me in language I could easily understand.
A25: CPAQ | B25: 2008-07-17 | C25: Gwendoline Guttersnipe Griffiths DC BSc MCC | D25: Back2Health | E25: Waterlooville | F25: 65 | G25: Male | H25: 1 | I25: White | J25: 6 | K25: Retired from paid work | L25: 5 | M25: 5 | N25: 0 | O25: 5 | P25: FALSE | Q25: FALSE | R25: FALSE | S25: FALSE | T25: TRUE | U25: 0 | V25: 0 | W25: 0 | X25: 0 | Y25: 0 | Z25: 1 | AA25: 5 | AB25: 0 | AC25: 0 | AD25: TRUE | AE25: 5 | AF25: 5 | AG25: 5 | AH25: 5 | AI25: 5 | AJ25: 5 | AK25: 5 | AL25: 5 | AM25: 1 | AN25: 1 | AO25: 1 | AP25: Timekeeping
A26: CPAQ | B26: 2008-07-18 | C26: Gwendoline Guttersnipe Griffiths DC BSc MCC | D26: Back2Health | E26: Waterlooville | F26: 44 | G26: Female | H26: 1 | I26: White | J26: 1 | K26: Employed (full of part time, including self-employed | L26: 5 | M26: 6 | N26: 0 | O26: 5 | P26: FALSE | Q26: FALSE | R26: FALSE | S26: FALSE | T26: TRUE | U26: 0 | V26: 0 | W26: 0 | X26: 0 | Y26: 0 | Z26: 1 | AA26: 6 | AB26: 6 | AC26: 0 | AD26: TRUE | AE26: 6 | AF26: 6 | AG26: 6 | AH26: 6 | AI26: 6 | AJ26: 5 | AK26: 6 | AL26: 5 | AM26: 1 | AN26: 1 | AO26: 1 | AP26: Very friendly makes you feel at ease and relaxed | AQ26: NO

Sheet Instructions
